bitfinex/quotes_BTCUSD_20250608
["timestamp","ask_amount","ask_price","bid_price","bid_amount"]
[1749349918586,3.66844581,105640.0,105630.0,1.07057064]
[1749349918787,3.66844581,105640.0,105630.0,1.12739286]
[1749349919041,3.66844581,105640.0,105630.0,1.08950405]
[1749349919265,3.66844581,105640.0,105630.0,1.12736664]
[1749349920320,3.66844581,105640.0,105630.0,1.25736664]
[1749349921283,3.68354581,105640.0,105630.0,1.25736664]
[1749349922551,3.68354581,105640.0,105630.0,1.12736664]
[1749349922944,3.69864581,105640.0,105630.0,1.12736664]
[1749349923151,3.68354581,105640.0,105630.0,1.12736664]
[1749349924375,3.69864581,105640.0,105630.0,1.12736664]
[1749349924584,3.66844581,105640.0,105630.0,1.12736664]
[1749349924792,3.66844581,105640.0,105630.0,1.25736664]
[1749349925616,3.68354581,105640.0,105630.0,1.12736664]
[1749349926013,3.69864581,105640.0,105630.0,1.12736664]
[1749349926240,3.69864581,105640.0,105630.0,1.07054442]
[1749349929036,3.69864581,105640.0,105630.0,0.67591591]
[1749349929238,3.70811111,105640.0,105630.0,0.67591591]
[1749349929453,3.69864581,105640.0,105630.0,0.67591591]
[1749349929867,3.71757668,105640.0,105630.0,0.67591591]
[1749349930238,3.71757668,105640.0,105630.0,0.38947591]
[1749349930454,3.71757668,105640.0,105630.0,0.67603591]
[1749349933031,3.72704252,105640.0,105630.0,0.67603591]
[1749349933231,3.71757659,105640.0,105630.0,0.67603591]
[1749349933431,3.72704225,105640.0,105630.0,0.67603591]
[1749349933745,3.71757659,105640.0,105630.0,0.67603591]
[1749349933956,3.72704225,105640.0,105630.0,0.67603591]
[1749349934367,3.71757659,105640.0,105630.0,0.67603591]
[1749349934519,3.72704225,105640.0,105630.0,0.67603591]
[1749349934924,3.72704225,105640.0,105630.0,0.80603591]
[1749349935122,3.71757659,105640.0,105630.0,0.80603591]
[1749349935372,3.72704225,105640.0,105630.0,0.80603591]
[1749349935539,3.73650809,105640.0,105630.0,0.80603591]
[1749349935742,3.72704225,105640.0,105630.0,0.80603591]
[1749349936020,3.73650809,105640.0,105630.0,0.80603591]
[1749349936530,3.72704225,105640.0,105630.0,0.80603591]
[1749349936748,3.736508,105640.0,105630.0,0.80603591]
[1749349937597,3.72704225,105640.0,105630.0,0.80603591]
[1749349938762,3.23592225,105640.0,105630.0,0.80603591]
[1749349939729,3.22645659,105640.0,105630.0,0.80603591]
[1749349940443,3.21699111,105640.0,105630.0,0.80603591]
[1749349940576,3.2264565,105640.0,105630.0,0.80603591]
[1749349942089,3.2264565,105640.0,105630.0,0.67603591]
[1749349943043,3.2264565,105640.0,105630.0,1.07066442]
[1749349943261,3.2264565,105640.0,105630.0,1.12748664]
[1749349944077,3.2264565,105640.0,105630.0,0.73285813]
[1749349944727,3.23592207,105640.0,105630.0,0.73285813]
[1749349945105,3.23592207,105640.0,105630.0,0.86285813]
[1749349945452,3.23592207,105640.0,105630.0,0.73285813]
[1749349945661,3.24538782,105640.0,105630.0,0.73285813]
[1749349945868,3.23592207,105640.0,105630.0,0.73285813]
[1749349948391,3.23592207,105640.0,105630.0,0.69499554]
[1749349948624,3.24538773,105640.0,105630.0,0.69499554]
[1749349949013,3.24538773,105640.0,105630.0,0.73288087]
[1749349950190,3.24538773,105640.0,105630.0,0.78288087]
[1749349953937,3.24538773,105640.0,105630.0,0.74499554]
[1749349954132,3.24538773,105640.0,105630.0,0.45843554]
[1749349954338,3.24538773,105640.0,105630.0,0.74507554]
[1749349954759,3.2264565,105640.0,105630.0,0.74507554]
[1749349954967,3.23592207,105640.0,105630.0,0.74507554]
[1749349956001,3.2264565,105640.0,105630.0,0.74507554]
[1749349956397,3.20752581,105640.0,105630.0,0.74507554]
[1749349957607,3.2169912,105640.0,105630.0,1.13970405]
[1749349957813,3.20752581,105640.0,105630.0,1.13970405]
[1749349958327,3.21699111,105640.0,105630.0,1.13970405]
[1749349959235,3.21699111,105640.0,105630.0,0.74507554]
[1749349961621,3.23592216,105640.0,105630.0,0.74511554]
[1749349963677,3.23592216,105640.0,105630.0,0.45843554]
[1749349963890,3.23592216,105640.0,105630.0,0.74507554]
[1749349965560,3.23592207,105640.0,105630.0,0.74507554]
[1749349966598,3.24538782,105640.0,105630.0,0.74507554]
[1749349968990,3.24538782,105640.0,105630.0,0.45843554]
[1749349969184,3.23592207,105640.0,105630.0,0.74503554]
[1749349969409,3.24538782,105640.0,105630.0,0.74503554]
[1749349973972,3.23592207,105640.0,105630.0,0.74503554]
[1749349974615,3.24538782,105640.0,105630.0,0.74503554]
[1749349974823,3.23592207,105640.0,105630.0,0.74503554]
[1749349975478,3.24538764,105640.0,105630.0,0.74503554]
[1749349975926,3.23592198,105640.0,105630.0,0.74503554]
[1749349976104,3.24538764,105640.0,105630.0,0.74503554]
[1749349977499,3.24538755,105640.0,105630.0,0.74503554]
[1749349980724,3.2264565,105640.0,105630.0,0.74503554]
[1749349981012,3.23592207,105640.0,105630.0,0.74503554]
[1749349981938,3.2264565,105640.0,105630.0,0.74503554]
[1749349982265,3.21699111,105640.0,105630.0,0.74503554]
[1749349982671,3.20752581,105640.0,105630.0,0.74503554]
[1749349982903,3.21699111,105640.0,105630.0,0.74503554]
[1749349984485,3.22645659,105640.0,105630.0,0.74503554]
[1749349985522,3.2264565,105640.0,105630.0,0.74503554]
[1749349987203,3.21699111,105640.0,105630.0,0.74503554]
[1749349988004,3.22645659,105640.0,105630.0,0.74503554]
[1749349988759,3.21699111,105640.0,105630.0,0.74503554]
[1749349990671,3.22645659,105640.0,105630.0,0.74503554]
[1749349991574,3.2264565,105640.0,105630.0,0.74503554]
[1749349993919,3.23592207,105640.0,105630.0,0.74503554]
[1749349994173,3.2264565,105640.0,105630.0,0.74503554]
[1749349997316,3.23592207,105640.0,105630.0,0.74503554]
[1749349998466,3.2264565,105640.0,105630.0,0.74503554]
[1749349999293,3.2264565,105640.0,105630.0,0.45843554]
[1749349999417,3.2264565,105640.0,105630.0,0.74483554]
[1749350001471,3.21699111,105640.0,105630.0,0.74483554]
[1749350002415,3.22645659,105640.0,105630.0,0.74483554]
[1749350003395,3.21699111,105640.0,105630.0,0.74483554]
[1749350003587,3.2264565,105640.0,105630.0,0.74483554]
[1749350005050,3.23592198,105640.0,105630.0,0.74483554]
[1749350005707,3.24538764,105640.0,105630.0,0.74483554]
[1749350005900,3.24538755,105640.0,105630.0,0.74483554]
[1749350006107,3.2264565,105640.0,105630.0,0.74483554]
[1749350006721,3.23592198,105640.0,105630.0,0.74483554]
[1749350006974,3.23592198,105640.0,105630.0,0.45843554]
[1749350007186,3.21699111,105640.0,105630.0,0.74483554]
[1749350007599,3.22645659,105640.0,105630.0,0.74483554]
[1749350009348,3.2264565,105640.0,105630.0,0.74483554]
[1749350009527,3.23592207,105640.0,105630.0,0.74483554]
[1749350010336,3.23592207,105640.0,105630.0,0.69483554]
[1749350010534,3.2264565,105640.0,105630.0,0.69483554]
[1749350011155,3.23592207,105640.0,105630.0,0.69483554]
[1749350011386,3.23592198,105640.0,105630.0,0.69483554]
[1749350012301,3.23592198,105640.0,105630.0,0.82483554]
[1749350012539,3.24538755,105640.0,105630.0,0.82483554]
[1749350012950,3.23592198,105640.0,105630.0,0.82483554]
[1749350015404,3.24538764,105640.0,105630.0,0.82483554]
[1749350015615,3.23592198,105640.0,105630.0,0.82483554]
[1749350021626,3.24538764,105640.0,105630.0,0.82483554]
[1749350022253,3.24538755,105640.0,105630.0,0.82483554]
[1749350023257,3.23592198,105640.0,105630.0,0.82483554]
[1749350024205,3.23592198,105640.0,105630.0,0.69483554]
[1749350025964,3.23592198,105640.0,105630.0,0.82483554]
[1749350026177,3.23592198,105640.0,105630.0,0.69483554]
[1749350026339,3.20752581,105640.0,105630.0,0.69483554]
[1749350026532,3.2169912,105640.0,105630.0,0.69483554]
[1749350027121,3.20752581,105640.0,105630.0,0.69483554]
[1749350027550,3.20752581,105640.0,105630.0,0.40843554]
[1749350027781,3.20752581,105640.0,105630.0,0.69483554]
[1749350027996,3.21699111,105640.0,105630.0,0.69483554]
[1749350028195,3.20752581,105640.0,105630.0,0.69483554]
[1749350029194,3.20752581,105640.0,105630.0,0.69432008]
[1749350031059,3.20752581,105640.0,105630.0,0.82432008]
[1749350031263,3.20752581,105640.0,105630.0,0.69432008]
[1749350031867,3.2169912,105640.0,105630.0,0.69432008]
[1749350032113,3.20752581,105640.0,105630.0,0.69432008]
[1749350036011,3.20752581,105640.0,105630.0,0.74432008]
[1749350037397,3.20752581,105640.0,105630.0,1.13894859]
[1749350041477,3.20752581,105640.0,105630.0,0.85254859]
[1749350041676,3.20752581,105640.0,105630.0,1.13894859]
[1749350041871,3.12052581,105640.0,105630.0,1.13894859]
[1749350042092,3.20752581,105640.0,105630.0,1.13894859]
[1749350042704,3.20752581,105640.0,105630.0,1.13877635]
[1749350046388,3.20752581,105640.0,105630.0,0.85237635]
[1749350046524,3.62091295,105640.0,105630.0,0.47685696]
[1749350046725,3.22645668,105640.0,105630.0,0.76325696]
[1749350046932,3.24538827,105640.0,105630.0,0.76325696]
[1749350047132,3.23592234,105640.0,105630.0,0.76325696]
[1749350047571,3.24538809,105640.0,105630.0,0.76325696]
[1749350048627,3.23592234,105640.0,105630.0,0.76325696]
[1749350049427,3.21699111,105640.0,105630.0,0.76325696]
[1749350049771,3.22645659,105640.0,105630.0,0.76325696]
[1749350050205,3.21699111,105640.0,105630.0,0.76325696]
[1749350050386,3.2264565,105640.0,105630.0,0.76325696]
[1749350052288,3.2264565,105640.0,105630.0,0.47685696]
[1749350052506,3.2264565,105640.0,105630.0,0.76333696]
[1749350053015,3.21699111,105640.0,105630.0,0.76333696]
[1749350055361,3.20752581,105640.0,105630.0,0.76333696]
[1749350059870,3.20752581,105640.0,105630.0,0.72546716]
[1749350061188,3.20752581,105640.0,105630.0,0.76332687]
[1749350065095,3.20752581,105640.0,105630.0,0.76332711]
[1749350065505,3.20752581,105640.0,105630.0,0.72546716]
[1749350068672,3.20752581,105640.0,105630.0,0.76332871]
[1749350069418,3.20752581,105640.0,105630.0,0.47684871]
[1749350069619,3.20752581,105640.0,105630.0,0.76336871]
[1749350070040,3.2169912,105640.0,105630.0,0.76336871]
[1749350070371,3.20752581,105640.0,105630.0,0.76336871]
[1749350075486,3.20752581,105640.0,105630.0,0.72550716]
[1749350078011,3.20752581,105640.0,105630.0,0.76337843]
[1749350080306,3.20752581,105640.0,105630.0,0.47685843]
[1749350080445,3.20752581,105640.0,105630.0,0.76369843]
[1749350080790,3.20752581,105640.0,105630.0,0.47685843]
[1749350080938,3.20752581,105640.0,105630.0,0.76365843]
[1749350086293,3.20752581,105640.0,105630.0,0.47685843]
[1749350086524,3.20752581,105640.0,105630.0,0.76373843]
[1749350086922,3.21699111,105640.0,105630.0,0.76373843]
[1749350088353,3.21699129,105640.0,105630.0,0.76373843]
[1749350088678,3.2169912,105640.0,105630.0,0.76373843]
[1749350092920,3.20752581,105640.0,105630.0,0.76373843]
[1749350093126,3.2169912,105640.0,105630.0,0.76373843]
[1749350094296,3.21699111,105640.0,105630.0,0.76373843]
[1749350096253,3.22645659,105640.0,105630.0,0.71373843]
[1749350096949,3.21699111,105640.0,105630.0,0.71373843]
[1749350097388,3.2264565,105640.0,105630.0,0.71373843]
[1749350098744,3.21699111,105640.0,105630.0,0.71373843]
[1749350099883,3.22645659,105640.0,105630.0,0.71373843]
[1749350100030,3.21699111,105640.0,105630.0,0.71373843]
[1749350101646,3.22645659,105640.0,105630.0,0.71373843]
[1749350101844,3.22645659,105640.0,105630.0,0.39390011]
[1749350101845,3.42524528,105640.0,105630.0,0.39390011]
[1749350102096,3.42524528,105640.0,105630.0,0.38441866]
[1749350102327,3.4157798,105640.0,105630.0,0.65220484]
[1749350102523,3.4157798,105640.0,105630.0,0.71167166]
[1749350102692,3.4157798,105640.0,105630.0,0.72113839]
[1749350102897,3.4157798,105640.0,105630.0,0.70220484]
[1749350103100,3.4157798,105640.0,105630.0,0.71167166]
[1749350103310,3.4157798,105640.0,105630.0,0.72113839]
[1749350104502,3.4157798,105640.0,105630.0,0.71167166]
[1749350104712,3.4157798,105640.0,105630.0,0.70220484]
[1749350104908,3.39684803,105640.0,105630.0,0.70220484]
[1749350105405,3.39684803,105640.0,105630.0,0.71107839]
[1749350105612,3.39684803,105640.0,105630.0,0.70220484]
[1749350105816,3.39684803,105640.0,105630.0,0.71107839]
[1749350106032,3.39684803,105640.0,105630.0,0.72054521]
[1749350106758,3.39684803,105640.0,105630.0,0.71167166]
[1749350106969,3.39684803,105640.0,105630.0,0.72054485]
[1749350107563,3.39684803,105640.0,105630.0,0.73001158]
[1749350107748,3.39684803,105640.0,105630.0,0.72054485]
[1749350107964,3.39684803,105640.0,105630.0,0.73001158]
[1749350108400,3.39684803,105640.0,105630.0,0.73001112]
[1749350108604,3.39684803,105640.0,105630.0,0.73001103]
[1749350109209,3.39684803,105640.0,105630.0,0.72113839]
[1749350109411,3.39684803,105640.0,105630.0,0.73001103]
[1749350109606,3.39684803,105640.0,105630.0,0.71167166]
[1749350109821,3.39684803,105640.0,105630.0,0.7205443]
[1749350110664,3.39684803,105640.0,105630.0,0.71167166]
[1749350111067,3.39684803,105640.0,105630.0,0.71107748]
[1749350111447,3.39684803,105640.0,105630.0,0.7205443]
[1749350111863,3.39684803,105640.0,105630.0,0.71167166]
[1749350112016,3.39684803,105640.0,105630.0,0.72054402]
[1749350112639,3.39684803,105640.0,105630.0,0.71167166]
[1749350112977,3.39684803,105640.0,105630.0,0.72054402]
[1749350113994,3.39684803,105640.0,105630.0,0.72054398]
[1749350114183,3.39684803,105640.0,105630.0,0.71167166]
[1749350114392,3.39684803,105640.0,105630.0,0.73001071]
[1749350115439,3.39684803,105640.0,105630.0,0.72054398]
[1749350115615,3.39684803,105640.0,105630.0,0.71167166]
[1749350116173,3.39684803,105640.0,105630.0,0.72054398]
[1749350116399,3.39684803,105640.0,105630.0,0.72054409]
[1749350116601,3.39684803,105640.0,105630.0,0.71167166]
[1749350116810,3.39684803,105640.0,105630.0,0.22555022]
[1749350117133,3.73684803,105640.0,105630.0,0.01287243]
[1749350117404,3.73684803,105640.0,105630.0,0.01287373]
[1749350117904,3.73684803,105640.0,105630.0,0.004]
[1749350118130,3.73684803,105640.0,105630.0,0.01287377]
[1749350118344,3.73684803,105640.0,105630.0,0.01286692]
[1749350118549,3.73684803,105640.0,105630.0,0.004]
[1749350119138,4.02352803,105640.0,105630.0,0.004]
[1749350127375,4.02352803,105640.0,105630.0,0.01286315]
[1749350127788,4.02352803,105640.0,105630.0,0.004]
[1749350135899,4.02352803,105640.0,105630.0,0.01286564]
[1749350136533,4.02352803,105640.0,105630.0,0.01286643]
[1749350136753,4.02352803,105640.0,105630.0,0.01286645]
[1749350137603,4.02352803,105640.0,105630.0,0.004]
[1749350137829,4.02352803,105640.0,105630.0,0.01286695]
[1749350138136,4.02352803,105640.0,105630.0,0.004]
[1749350139100,4.02352803,105640.0,105630.0,0.01286847]
[1749350139335,4.02352803,105640.0,105630.0,0.01286846]
[1749350139779,4.02352803,105640.0,105630.0,0.01286847]
[1749350140186,4.02352803,105640.0,105630.0,0.004]
[1749350140825,4.02352803,105640.0,105630.0,0.01286846]
[1749350141362,4.02352803,105640.0,105630.0,0.004]
[1749350141515,4.02352803,105640.0,105630.0,0.01286894]
[1749350141715,4.02352803,105640.0,105630.0,0.004]
[1749350142489,3.73684803,105640.0,105630.0,0.01287169]
[1749350143019,3.73684803,105640.0,105630.0,0.01287212]
[1749350143993,3.73684803,105640.0,105630.0,0.004]
[1749350144346,3.73684803,105640.0,105630.0,0.01287212]
[1749350144919,3.73684803,105640.0,105630.0,0.01287947]
[1749350145114,3.73684803,105640.0,105630.0,0.004]
[1749350147320,4.22804803,105640.0,105630.0,0.004]
[1749350147736,4.22832803,105640.0,105630.0,0.19334014]
[1749350147949,4.22832803,105640.0,105630.0,0.22172552]
[1749350148158,4.22832803,105640.0,105630.0,0.23119252]
[1749350148374,3.69900581,105640.0,105630.0,0.75047172]
[1749350148591,3.66880581,105640.0,105630.0,0.80288384]
[1749350149446,3.66880581,105640.0,105630.0,0.90449846]
[1749350149654,3.66880581,105640.0,105630.0,0.9328873]
[1749350149858,3.66880581,105640.0,105630.0,0.8028873]
[1749350152316,3.66880581,105640.0,105630.0,0.40840751]
[1749350152949,3.67827111,105640.0,105630.0,0.40840751]
[1749350153159,3.66880581,105640.0,105630.0,0.40840751]
[1749350153883,3.67827111,105640.0,105630.0,0.40840751]
[1749350154597,3.69457111,105640.0,105630.0,0.53840751]
[1749350155527,3.71077111,105640.0,105630.0,0.53840751]
[1749350155926,3.7202365,105640.0,105630.0,0.53840751]
[1749350156336,3.72970198,105640.0,105630.0,0.53840751]
[1749350156531,3.72970198,105640.0,105630.0,0.40840751]
[1749350157089,3.73916755,105640.0,105630.0,0.40840751]
[1749350157299,3.58152581,105640.0,105630.0,0.40840751]
[1749350157517,3.6781112,105640.0,105630.0,0.40840751]
[1749350159142,3.68757677,105640.0,105630.0,0.40840751]
[1749350159356,3.6781112,105640.0,105630.0,0.40840751]
[1749350159558,3.6781112,105640.0,105630.0,0.47840751]
[1749350160263,3.68757668,105640.0,105630.0,0.47840751]
[1749350161193,3.70387668,105640.0,105630.0,0.47840751]
[1749350161494,3.6944112,105640.0,105630.0,0.47840751]
[1749350161914,3.68494581,105640.0,105630.0,0.47840751]
[1749350162120,3.66864581,105640.0,105630.0,0.47840751]
[1749350162739,3.66864581,105640.0,105630.0,0.8728873]
[1749350164038,3.66864581,105640.0,105630.0,0.77449846]
[1749350164247,3.66864581,105640.0,105630.0,0.83132068]
[1749350164463,3.66864581,105640.0,105630.0,0.79344941]
[1749350165774,3.66864581,105640.0,105630.0,0.84344941]
[1749350177833,3.66864581,105640.0,105630.0,0.84335902]
[1749350179719,3.17744581,105640.0,105630.0,0.84335902]
[1749350184494,3.17744581,105640.0,105630.0,1.54335902]
[1749350184695,3.17744581,105640.0,105630.0,1.4865368]
[1749350185841,3.17744581,105640.0,105630.0,1.56210469]
[1749350187246,3.17744581,105640.0,105630.0,2.59439409]
[1749350187456,3.17744581,105640.0,105630.0,2.5472622]
[1749350187669,3.17744581,105640.0,105630.0,2.6419444]
[1749350188089,3.17744581,105640.0,105630.0,2.6399444]
[1749350188294,3.17744581,105640.0,105630.0,2.6429444]
[1749350188703,3.17744581,105640.0,105630.0,1.9429444]
[1749350188913,3.17744581,105640.0,105630.0,1.9409444]
[1749350189116,3.17744581,105640.0,105630.0,1.9379444]
[1749350189329,3.17744581,105640.0,105630.0,1.9399444]
[1749350189554,3.09032581,105640.0,105630.0,1.9409444]
[1749350189757,3.09032581,105640.0,105630.0,1.9449444]
[1749350190949,3.09032581,105640.0,105630.0,1.9419444]
[1749350191584,3.09032581,105640.0,105630.0,2.6439444]
[1749350193402,3.09032581,105640.0,105630.0,2.9303844]
[1749350199728,3.09032581,105640.0,105630.0,2.8357022]
[1749350200296,3.09032581,105640.0,105630.0,2.9303844]
[1749350207729,3.09032581,105640.0,105630.0,2.93017918]
[1749350212509,3.10692581,105640.0,105630.0,2.93017918]
[1749350212701,3.12342581,105640.0,105630.0,2.93017918]
[1749350216842,3.12342581,105640.0,105630.0,2.23017918]
[1749350217047,3.12342581,105640.0,105630.0,1.94373918]
[1749350217258,3.12342581,105640.0,105630.0,2.23009918]
[1749350219734,3.12342581,105640.0,105630.0,2.93009918]
[1749350222215,3.12342581,105640.0,105630.0,2.83541698]
[1749350222430,3.12342581,105640.0,105630.0,2.93008517]
[1749350226058,3.12342581,105640.0,105630.0,2.88008517]
[1749350227766,3.12342581,105640.0,105630.0,3.01008517]
[1749350238612,3.12342581,105640.0,105630.0,2.98164917]
[1749350240741,3.12342581,105640.0,105630.0,2.15164917]
[1749350242423,3.12342581,105640.0,105630.0,2.20164917]
[1749350246591,3.12342581,105640.0,105630.0,2.90164917]
[1749350252648,2.98138603,105640.0,105630.0,2.60377169]
[1749350253072,2.98138603,105640.0,105630.0,2.63220769]
[1749350253484,2.98138603,105640.0,105630.0,2.63020769]
[1749350254098,2.98138603,105640.0,105630.0,2.63520769]
[1749350257991,2.98138603,105640.0,105630.0,2.93310769]
[1749350258390,2.94828603,105640.0,105630.0,2.88841698]
[1749350258603,2.96378603,105640.0,105630.0,2.88841698]
[1749350259028,2.98028603,105640.0,105630.0,2.88841698]
[1749350260293,2.98028603,105640.0,105630.0,2.98303962]
[1749350260698,2.94828603,105640.0,105630.0,2.98303962]
[1749350260903,2.94828603,105640.0,105630.0,2.88841698]
[1749350261656,2.96378603,105640.0,105630.0,2.88841698]
[1749350262494,2.98028603,105640.0,105630.0,2.98301858]
[1749350262702,2.83825685,105640.0,105630.0,2.98301858]
[1749350272642,2.69623248,105640.0,105630.0,2.98301858]
[1749350274733,2.69623248,105640.0,105630.0,2.28301858]
[1749350277697,2.69623248,105640.0,105630.0,2.98301858]
[1749350282704,2.55420805,105640.0,105630.0,2.98301858]
[1749350286126,2.55420805,105640.0,105630.0,2.98297858]
[1749350286351,2.55420805,105640.0,105630.0,2.88837698]
[1749350286571,2.55420805,105640.0,105630.0,2.98297858]
[1749350286791,2.55420805,105640.0,105630.0,2.88837698]
[1749350291297,2.55277664,105640.0,105630.0,2.88837698]
[1749350292701,2.55277664,105640.0,105630.0,2.98297858]
[1749350298166,2.55277664,105640.0,105630.0,2.64665858]
[1749350298374,2.55277664,105640.0,105630.0,2.52415094]
[1749350298589,2.55277664,105640.0,105630.0,2.20939494]
[1749350298779,2.55277664,105640.0,105630.0,2.47681454]
[1749350298945,2.55277664,105640.0,105630.0,2.49135539]
[1749350302554,2.55277664,105640.0,105630.0,2.44135539]
[1749350305129,2.55277664,105640.0,105630.0,2.57135539]
[1749350305552,2.55277664,105640.0,105630.0,2.1770686]
[1749350305745,2.55277664,105640.0,105630.0,2.57135539]
[1749350306831,2.55277664,105640.0,105630.0,2.59979139]
[1749350310619,2.55277664,105640.0,105630.0,2.60864946]
[1749350310852,2.55277664,105640.0,105630.0,2.6086494]
[1749350311456,2.55277664,105640.0,105630.0,2.60864951]
[1749350311656,2.55277664,105640.0,105630.0,2.60864949]
[1749350311948,2.55277664,105640.0,105630.0,2.59979139]
[1749350312353,2.55277664,105640.0,105630.0,2.60864955]
[1749350312568,2.55277664,105640.0,105630.0,2.59979139]
[1749350313074,2.55277664,105640.0,105630.0,2.6086495]
[1749350313820,2.55277664,105640.0,105630.0,2.59979139]
[1749350314022,2.55277664,105640.0,105630.0,2.60865037]
[1749350314193,2.55277664,105640.0,105630.0,2.60865034]
[1749350314421,2.55277664,105640.0,105630.0,2.60865035]
[1749350314627,2.55277664,105640.0,105630.0,2.60865036]
[1749350314978,2.55277664,105640.0,105630.0,2.59979139]
[1749350315244,2.55277664,105640.0,105630.0,2.60865214]
[1749350315423,2.55277664,105640.0,105630.0,2.59979139]
[1749350315890,2.55277664,105640.0,105630.0,2.6086521]
[1749350316252,2.55277664,105640.0,105630.0,2.60865212]
[1749350317910,2.55277664,105640.0,105630.0,2.59979139]
[1749350318322,2.55277664,105640.0,105630.0,2.60865211]
[1749350318851,2.55277664,105640.0,105630.0,2.60865278]
[1749350319438,2.55277664,105640.0,105630.0,2.59979139]
[1749350319651,2.55277664,105640.0,105630.0,2.60865286]
[1749350319828,2.55277664,105640.0,105630.0,1.90865285]
[1749350320059,2.55277664,105640.0,105630.0,1.89979139]
[1749350320290,2.55277664,105640.0,105630.0,1.90865284]
[1749350321121,2.55277664,105640.0,105630.0,1.89979139]
[1749350321322,2.55277664,105640.0,105630.0,1.90865415]
[1749350321531,2.55277664,105640.0,105630.0,1.89979139]
[1749350322155,2.55277664,105640.0,105630.0,1.90865415]
[1749350322737,2.55277664,105640.0,105630.0,2.60865415]
[1749350322963,2.55277664,105640.0,105630.0,2.59979139]
[1749350323384,2.55277664,105640.0,105630.0,2.60865417]
[1749350323591,2.55277664,105640.0,105630.0,2.59979139]
[1749350323798,2.55277664,105640.0,105630.0,2.60865569]
[1749350324006,2.55277664,105640.0,105630.0,2.60865615]
[1749350324221,2.55240429,105640.0,105630.0,2.60865615]
[1749350326374,2.55240429,105640.0,105630.0,2.6086592]
[1749350328454,2.55240429,105640.0,105630.0,2.59979139]
[1749350328658,2.55240429,105640.0,105630.0,2.60866796]
[1749350328864,2.55240429,105640.0,105630.0,2.59979139]
[1749350329096,2.55240429,105640.0,105630.0,2.60866824]
[1749350329722,2.55240429,105640.0,105630.0,2.32234823]
[1749350329941,2.55240429,105640.0,105630.0,2.60870823]
[1749350330086,2.55240429,105640.0,105630.0,2.59983139]
[1749350330283,2.55240429,105640.0,105630.0,2.60870836]
[1749350330514,2.55240429,105640.0,105630.0,2.60870834]
[1749350330712,2.55240429,105640.0,105630.0,2.59983139]
[1749350330915,2.55240429,105640.0,105630.0,2.60870834]
[1749350332199,2.55240429,105640.0,105630.0,2.60870854]
[1749350332527,2.55240429,105640.0,105630.0,1.89983139]
[1749350332930,2.55240429,105640.0,105630.0,1.90870851]
[1749350333335,2.55240429,105640.0,105630.0,1.62234851]
[1749350333541,2.55240429,105640.0,105630.0,0.88806192]
[1749350333747,2.55240429,105640.0,105630.0,0.82620201]
[1749350333939,2.56186959,105640.0,105630.0,1.10368444]
[1749350334255,2.55240429,105640.0,105630.0,1.11822529]
[1749350334627,2.55240429,105640.0,105630.0,1.11256357]
[1749350334803,2.55240429,105640.0,105630.0,1.12710442]
[1749350335263,2.55240429,105640.0,105630.0,0.84074442]
[1749350335470,2.55240429,105640.0,105630.0,1.12710442]
[1749350335889,2.55240429,105640.0,105630.0,1.12709346]
[1749350336302,2.55240429,105640.0,105630.0,1.07027557]
[1749350336515,2.55240429,105640.0,105630.0,1.12709351]
[1749350336722,2.55240429,105640.0,105630.0,1.12709341]
[1749350337540,2.55240429,105640.0,105630.0,1.11822529]
[1749350337667,2.55240429,105640.0,105630.0,1.12709295]
[1749350337874,2.55240429,105640.0,105630.0,0.82919295]
[1749350339811,2.55240429,105640.0,105630.0,0.82918892]
[1749350340643,2.55240429,105640.0,105630.0,0.82032529]
[1749350340847,2.55240429,105640.0,105630.0,0.82918776]
[1749350341430,2.55240429,105640.0,105630.0,0.82918725]
[1749350341852,2.55240429,105640.0,105630.0,0.82918731]
[1749350342919,2.55240429,105640.0,105630.0,0.82032529]
[1749350343294,2.55240429,105640.0,105630.0,0.82918539]
[1749350343503,2.55240429,105640.0,105630.0,0.69918539]
[1749350344805,2.55240429,105640.0,105630.0,0.69918582]
[1749350345144,2.55240429,105640.0,105630.0,0.69918544]
[1749350345355,2.55240429,105640.0,105630.0,0.74918544]
[1749350346229,2.55240429,105640.0,105630.0,0.74918586]
[1749350348050,2.63940429,105640.0,105630.0,1.14347256]
[1749350348256,2.55240429,105640.0,105630.0,1.08665408]
[1749350348463,2.55240429,105640.0,105630.0,1.07779419]
[1749350348676,2.55240429,105640.0,105630.0,1.85349539]
[1749350348822,2.55240429,105640.0,105630.0,1.86235488]
[1749350349044,2.55240429,105640.0,105630.0,1.85349539]
[1749350349776,2.55240429,105640.0,105630.0,2.15139539]
[1749350358018,2.55240429,105640.0,105630.0,2.88568218]
[1749350358019,2.53590429,105640.0,105630.0,2.88568218]
[1749350358216,2.52040429,105640.0,105630.0,2.88568218]
[1749350358423,2.52040429,105640.0,105630.0,2.44412919]
[1749350358624,2.52040429,105640.0,105630.0,2.51972061]
[1749350359224,2.55290429,105640.0,105630.0,2.52018956]
[1749350361163,2.55290429,105640.0,105630.0,1.82018956]
[1749350362401,2.55290429,105640.0,105630.0,2.21447635]
[1749350364221,2.55290429,105640.0,105630.0,2.91447635]
[1749350366673,2.55290429,105640.0,105630.0,2.52018956]
[1749350367150,2.55290429,105640.0,105630.0,2.91447635]
[1749350367568,2.55290429,105640.0,105630.0,2.52018956]
[1749350369314,2.55290429,105640.0,105630.0,2.44459814]
[1749350373907,2.55290429,105640.0,105630.0,2.53919974]
[1749350375002,2.55290429,105640.0,105630.0,1.83919974]
[1749350375641,2.55290429,105640.0,105630.0,2.23348653]
[1749350375875,2.55290429,105640.0,105630.0,1.83919974]
[1749350377922,2.55290429,105640.0,105630.0,2.53919974]
[1749350381460,2.55290429,105640.0,105630.0,1.83919974]
[1749350383652,2.55290429,105640.0,105630.0,1.83915974]
[1749350383841,2.55290429,105640.0,105630.0,1.74455814]
[1749350384053,2.55290429,105640.0,105630.0,1.45823814]
[1749350384264,2.55290429,105640.0,105630.0,1.72499718]
[1749350384448,2.55290429,105640.0,105630.0,2.42499718]
[1749350384601,2.55290429,105640.0,105630.0,1.82011839]
[1749350384806,2.55290429,105640.0,105630.0,2.50080581]
[1749350385024,2.55290429,105640.0,105630.0,2.50080586]
[1749350385794,2.55290429,105640.0,105630.0,2.5008017]
[1749350386051,2.55290429,105640.0,105630.0,2.50080186]
[1749350386731,2.63986429,105640.0,105630.0,2.49193114]
[1749350386969,2.63986429,105640.0,105630.0,2.50080186]
[1749350387744,2.63986429,105640.0,105630.0,2.50079963]
[1749350388592,2.63986429,105640.0,105630.0,2.50079966]
[1749350389619,2.63986429,105640.0,105630.0,2.42507166]
[1749350389825,2.63986429,105640.0,105630.0,2.42507131]
[1749350390170,2.63986429,105640.0,105630.0,1.40438452]
[1749350390373,2.63986429,105640.0,105630.0,1.0329545]
[1749350390796,2.63986429,105640.0,105630.0,1.04749535]
[1749350391117,2.63986429,105640.0,105630.0,1.02962848]
[1749350391338,2.63986429,105640.0,105630.0,0.73572848]
[1749350391532,2.63986429,105640.0,105630.0,0.78241589]
[1749350391749,2.63986429,105640.0,105630.0,0.78241591]
[1749350394053,2.63986429,105640.0,105630.0,0.78240963]
[1749350394440,2.63986429,105640.0,105630.0,0.77354929]
[1749350394636,2.63986429,105640.0,105630.0,0.78240925]